bitfinex/quotes_SOLUSD_20251204
["timestamp","ask_amount","ask_price","bid_price","bid_amount"]
[1764819697587,1e-08,144.58,144.57,81.70991974]
[1764819699276,0.2,144.6,144.59,16.308864]
[1764819699474,0.2,144.6,144.59,26.50177443]
[1764819699673,0.2,144.6,144.59,89.91177443]
[1764819700266,0.2,144.6,144.59,96.82788204]
[1764819702089,0.2,144.63,144.6,0.71]
[1764819702282,0.2,144.63,144.62,29.17341615]
[1764819702481,0.2,144.63,144.62,36.79341615]
[1764819702789,0.2,144.64,144.62,29.74468486]
[1764819702966,0.2,144.64,144.63,3.24291043]
[1764819703167,0.2,144.64,144.63,0.67]
[1764819703367,0.2,144.64,144.63,3.24291043]
[1764819703991,0.2,144.64,144.63,10.15710527]
[1764819704192,0.2,144.67,144.63,18.96705019]
[1764819704388,0.2,144.67,144.64,3.24291043]
[1764819705296,0.2,144.67,144.64,10.15662724]
[1764819706501,1e-08,144.65,144.64,10.15662724]
[1764819708684,1e-08,144.65,144.64,7.58371681]
[1764819708897,1e-08,144.65,144.64,9.48662724]
[1764819709493,1e-08,144.65,144.64,10.15662724]
[1764819712000,1e-08,144.65,144.64,6.91371681]
[1764819712001,0.66000001,144.65,144.64,6.91371681]
[1764819719083,1e-08,144.65,144.64,6.91371681]
[1764819719511,0.66000001,144.65,144.63,6.91419484]
[1764819719696,0.66000001,144.65,144.63,9.48710527]
[1764819720306,0.66000001,144.65,144.63,6.91419484]
[1764819723013,0.66000001,144.65,144.62,6.91453881]
[1764819724520,3.23291044,144.65,144.61,6.91500877]
[1764819724921,0.66,144.64,144.61,6.91500877]
[1764819725122,3.23291043,144.64,144.6,14.53546651]
[1764819725331,3.23291043,144.64,144.61,6.91512352]
[1764819725503,0.66,144.63,144.61,6.91512352]
[1764819731434,1e-08,144.65,144.61,9.48803395]
[1764819731740,1e-08,144.65,144.63,2.57291043]
[1764819732336,1e-08,144.65,144.64,3.24291043]
[1764819732742,1e-08,144.65,144.63,10.19291043]
[1764819732921,1e-08,144.65,144.63,10.89291043]
[1764819733616,1e-08,144.65,144.64,6.91371681]
[1764819744322,0.67000001,144.65,144.64,6.91371681]
[1764819746839,1e-08,144.65,144.64,6.91371681]
[1764819747527,1e-08,144.65,144.64,11.62827413]
[1764819748618,1e-08,144.65,144.64,10.92827413]
[1764819748944,1e-08,144.65,144.64,11.62827413]
[1764819751345,1e-08,144.65,144.64,7.61371681]
[1764819751543,1e-08,144.65,144.64,11.62827413]
[1764819751743,1e-08,144.65,144.64,10.92827413]
[1764819752043,1e-08,144.65,144.64,11.62827413]
[1764819752221,1e-08,144.65,144.64,28.64342132]
[1764819752417,1e-08,144.65,144.64,12.33455732]
[1764819753230,1e-08,144.65,144.64,19.24827413]
[1764819754240,1e-08,144.65,144.64,18.54827413]
[1764819756847,1e-08,144.65,144.64,19.24827413]
[1764819757545,1e-08,144.65,144.64,35.55713813]
[1764819772263,0.69000001,144.65,144.6,17.97871266]
[1764819772467,0.69000001,144.65,144.62,4.01455732]
[1764819772663,0.69000001,144.65,144.63,4.01455732]
[1764819773366,0.69000001,144.65,144.63,6.91403326]
[1764819777870,0.69000001,144.65,144.62,6.91467293]
[1764819778567,0.69000001,144.65,144.61,14.5350238]
[1764819778568,11.6178039,144.65,144.61,14.5350238]
[1764819779071,0.69,144.64,144.61,14.5350238]
[1764819779466,0.69,144.64,144.61,6.9150238]
[1764819779672,0.69,144.64,144.6,6.9155746]
[1764819779673,4.70455732,144.64,144.6,6.9155746]
[1764819779841,4.01455732,144.63,144.59,7.62]
[1764819780166,4.70455732,144.63,144.59,14.53600651]
[1764819780376,0.69,144.62,144.59,14.53600651]
[1764819782468,0.69,144.62,144.59,18.55056383]
[1764819782859,0.69,144.62,144.59,19.24056383]
[1764819784092,1e-08,144.65,144.61,4.01455732]
[1764819784257,1e-08,144.65,144.62,11.63455732]
[1764819784651,1e-08,144.65,144.62,12.32455732]
[1764819784851,1e-08,144.65,144.63,4.01455732]
[1764819785051,1e-08,144.65,144.63,4.70455732]
[1764819786068,1e-08,144.65,144.64,6.91371681]
[1764819786272,1e-08,144.65,144.64,11.61827413]
[1764819787060,1e-08,144.65,144.64,7.60371681]
[1764819787256,1e-08,144.65,144.64,10.92827413]
[1764819787680,1e-08,144.65,144.64,11.61827413]
[1764819788751,1e-08,144.65,144.64,6.91371681]
[1764819788957,1e-08,144.65,144.64,10.92827413]
[1764819792454,1e-08,144.65,144.64,11.58827413]
[1764819796403,1e-08,144.65,144.64,10.14236943]
[1764819801166,1e-08,144.65,144.64,17.76236943]
[1764819802089,1e-08,144.65,144.64,9.48236943]
[1764819802264,1e-08,144.65,144.64,17.10236943]
[1764819808968,1e-08,144.65,144.64,17.76236943]
[1764819809170,1e-08,144.65,144.64,17.10236943]
[1764819811167,1e-08,144.65,144.64,17.76236943]
[1764819822503,1e-08,144.65,144.64,17.10236943]
[1764819828684,1e-08,144.65,144.64,17.82236943]
[1764819831794,1e-08,144.65,144.64,17.10236943]
[1764819832198,1e-08,144.65,144.64,14.53371681]
[1764819832400,1e-08,144.65,144.64,17.10236943]
[1764819833111,1e-08,144.65,144.64,17.82236943]
[1764819833707,0.70000001,144.65,144.64,14.53371681]
[1764819834514,0.70000001,144.65,144.64,17.10236943]
[1764819835991,0.70000001,144.65,144.64,14.53371681]
[1764819838108,0.70000001,144.65,144.64,7.62]
[1764819839615,0.70000001,144.65,144.64,14.53371681]
[1764819840189,10.18189187,144.65,144.6,6.9155256]
[1764819840391,2.56865262,144.64,144.6,6.9155256]
[1764819840603,2.56865262,144.63,144.6,6.9155256]
[1764819840816,3.26865262,144.63,144.59,6.91601714]
[1764819841001,0.7,144.62,144.6,6.91559283]
[1764819842320,0.7,144.62,144.59,6.91610761]
[1764819844816,0.7,144.64,144.61,2.56865262]
[1764819845003,0.7,144.64,144.62,2.56865262]
[1764819846015,0.7,144.64,144.62,9.48289256]
[1764819846398,1e-08,144.65,144.63,3.28865262]
[1764819846602,1e-08,144.65,144.63,2.56865262]
[1764819846810,0.70000001,144.65,144.63,2.56865262]
[1764819847200,0.70000001,144.65,144.62,24.20092227]
[1764819847398,0.70000001,144.65,144.62,26.76957489]
[1764819848997,0.70000001,144.65,144.64,6.91371681]
[1764819851000,1e-08,144.65,144.64,17.10236943]
[1764819855821,1e-08,144.65,144.64,14.53371681]
[1764819856023,1e-08,144.65,144.64,17.10236943]
[1764819857339,1e-08,144.65,144.64,17.76236943]
[1764819858434,1e-08,144.65,144.64,19.20634343]
[1764819862305,1e-08,144.65,144.64,14.53371681]
[1764819862529,1e-08,144.65,144.64,15.19371681]
[1764819862828,1e-08,144.65,144.64,19.20634343]
[1764819877851,1e-08,144.65,144.64,28.01628835]
[1764819878161,0.2,144.67,144.64,45.30058038]
[1764819878323,0.2,144.67,144.66,4.01262662]
[1764819878520,0.2,144.67,144.66,11.63262662]
[1764819878743,0.2,144.67,144.66,12.29262662]
[1764819879137,0.2,144.67,144.66,19.20538757]
[1764819883446,0.2,144.67,144.66,15.19276095]
[1764819883759,0.2,144.67,144.66,19.20538757]
[1764819883927,0.2,144.67,144.66,18.54538757]
[1764819885459,0.89,144.67,144.66,18.54538757]
[1764819900371,0.89,144.67,144.66,11.63262662]
[1764819900558,0.89,144.67,144.66,7.62]
[1764819901370,0.89,144.67,144.65,6.91320987]
[1764819901562,0.69,144.66,144.64,6.91370373]
[1764819901869,0.69,144.66,144.64,10.92633035]
[1764819905178,0.69,144.66,144.63,6.91404365]
[1764819905473,0.69,144.66,144.63,10.92667027]
[1764819905852,0.69,144.66,144.64,6.91349597]
[1764819906052,0.69,144.66,144.65,4.01262662]
[1764819906247,4.70262662,144.66,144.6,2.76692145]
[1764819906550,4.01262662,144.65,144.6,4.01262662]
[1764819906747,0.69,144.64,144.6,4.01262662]
[1764819907174,0.69,144.64,144.61,6.91503947]
[1764819907358,0.69,144.64,144.61,10.92766609]
[1764819909179,0.69,144.64,144.62,4.01262662]
[1764819909478,0.69,144.64,144.61,4.01262662]
[1764819912170,0.69,144.64,144.61,10.92752083]
[1764819918288,11.61666891,144.64,144.59,7.62]
[1764819918586,24.77315393,144.63,144.59,7.62]
[1764819918884,25.43315393,144.63,144.59,7.62]
[1764819919186,4.67262662,144.62,144.58,6.91622616]
[1764819919384,4.01262662,144.61,144.57,6.91695276]
[1764819919592,25.43602766,144.61,144.57,6.91695276]
[1764819919886,0.66,144.6,144.57,6.91695276]
[1764819923394,7.5756768,144.6,144.56,9.48931211]
[1764819923890,0.66,144.59,144.56,9.48931211]
[1764819924583,0.66,144.59,144.56,10.15931211]
[1764819926396,0.66,144.59,144.56,7.58737964]
[1764819926572,0.66,144.59,144.56,10.15931211]
[1764819927295,0.66,144.59,144.56,6.91737964]
[1764819927472,0.66,144.59,144.56,10.15931211]
[1764819927894,0.66,144.59,144.56,7.58737964]
[1764819928395,2.57193247,144.58,144.55,7.62]
[1764819928590,26.45721118,144.59,144.53,10.86193247]
[1764819928788,0.66,144.58,144.53,10.86193247]
[1764819929498,3.23193247,144.58,144.53,10.86193247]
[1764819929796,3.23193247,144.58,144.54,6.91846472]
[1764819929974,0.66,144.57,144.54,6.91846472]
[1764819930689,3.23193247,144.57,144.54,6.91846472]
[1764819930892,2.57193247,144.55,144.5,36.75948275]
[1764819931192,0.66,144.54,144.52,6.91933035]
[1764819931572,0.66,144.54,144.52,7.58933035]
[1764819931895,7.57661259,144.58,144.53,3.24193247]
[1764819932075,0.66,144.58,144.54,2.57193247]
[1764819932271,0.66,144.58,144.55,0.67]
[1764819932871,9.48767986,144.6,144.55,0.67]
[1764819933078,0.66,144.59,144.55,10.86193247]
[1764819933476,2.57193247,144.58,144.53,10.86193247]
[1764819933676,9.48885749,144.58,144.53,17.11081331]
[1764819933879,3.23193247,144.57,144.53,15.20888084]
[1764819934098,3.23193247,144.57,144.52,6.91943547]
[1764819934404,3.23193247,144.56,144.52,6.91943547]
[1764819934599,2.57193247,144.55,144.51,7.62]
[1764819934896,3.23193247,144.55,144.51,7.62]
[1764819935099,3.23193247,144.54,144.51,7.62]
[1764819935597,0.66,144.53,144.5,6.92007648]
[1764819935802,0.66,144.53,144.5,0.67]
[1764819936098,2.57193247,144.55,144.5,3.24193247]
[1764819936288,0.66,144.54,144.5,3.24193247]
[1764819936492,0.66,144.54,144.51,0.67]
[1764819937702,9.48954208,144.56,144.51,0.67]
[1764819937703,25.91912402,144.57,144.53,6.91897875]
[1764819937904,0.66,144.56,144.53,6.91897875]
[1764819941721,0.66,144.56,144.52,8.29]
[1764819941722,7.57754853,144.56,144.52,14.53944765]
[1764819941886,10.149481,144.56,144.52,14.53944765]
[1764819942085,0.7,144.55,144.52,14.53944765]
[1764819942306,0.7,144.55,144.52,15.25944765]
[1764819946217,18.48193247,144.57,144.52,17.11138012]
[1764819946408,0.68,144.56,144.53,3.23193247]
[1764819946911,0.68,144.56,144.53,0.66]
[1764819947111,0.68,144.56,144.53,3.23193247]
[1764819947618,0.68,144.56,144.53,10.15067568]
[1764819953836,0.68,144.56,144.53,2.57193247]
[1764819954942,7.59755826,144.56,144.53,3.23193247]
[1764819956332,0.68,144.56,144.53,10.1509011]
[1764819956844,16.308864,144.58,144.55,9.48979579]
[1764819957345,24.21595898,144.6,144.56,3.23193247]
[1764819957644,9.48994492,144.61,144.58,2.57193247]
[1764819957645,0.68,144.61,144.58,2.57193247]
[1764819958344,0.68,144.61,144.57,3.23193247]
[1764819959545,7.59562482,144.61,144.57,2.57193247]
[1764819960738,7.59570222,144.6,144.57,2.57193247]
[1764819960942,0.68,144.6,144.57,3.23193247]
[1764819962330,7.59473373,144.62,144.58,3.23193247]
[1764819962651,0.68,144.64,144.61,2.57193247]
[1764819962857,16.988864,144.64,144.61,2.57193247]
[1764819963174,7.59330668,144.65,144.61,9.48700912]
[1764819963342,7.59330668,144.65,144.62,0.66]
[1764819963523,0.68,144.64,144.61,3.23193247]
[1764819965851,7.59283038,144.66,144.62,3.23193247]
[1764819966147,0.68,144.65,144.62,0.66]
[1764819966349,0.68,144.65,144.61,10.14691731]
[1764819967046,7.59332615,144.65,144.61,10.14691731]
[1764819967351,0.68,144.64,144.61,10.14691731]
[1764819969040,0.68,144.64,144.61,3.23193247]
[1764819970556,7.59395582,144.64,144.6,2.57193247]
[1764819970856,7.59395582,144.64,144.6,3.23193247]
[1764819971057,0.68,144.63,144.6,3.23193247]
[1764819973729,0.68,144.63,144.6,10.14748464]
[1764819974238,7.59395582,144.64,144.6,10.19748464]
[1764819974855,15.72318377,144.65,144.6,10.19748464]
[1764819975058,0.68,144.64,144.6,10.19748464]
[1764819976063,7.59385315,144.64,144.6,10.19748464]
[1764819976871,0.68,144.63,144.6,10.19748464]
[1764819977235,7.59424215,144.63,144.59,10.90193247]
[1764819977534,7.59424215,144.63,144.59,7.62]
[1764819977734,0.68,144.62,144.59,7.62]
[1764819977976,3.25193247,144.62,144.57,2.57193247]
[1764819978150,12.06187739,144.61,144.56,3.28193247]
[1764819978648,8.80994492,144.61,144.56,9.48910367]
[1764819978831,0.68,144.6,144.57,0.71]
[1764819981060,7.59571354,144.6,144.57,0.71]
[1764819981440,7.59571354,144.6,144.57,3.28193247]
[1764819982139,7.59571354,144.6,144.57,0.71]
[1764819984249,7.59571354,144.6,144.57,4.7284702]
[1764819985936,0.68,144.59,144.56,0.71]
[1764819986134,0.68,144.59,144.56,4.7284702]
[1764819986950,0.68,144.59,144.57,0.71]
[1764819988063,7.59619547,144.59,144.55,4.0184702]
[1764819988360,12.82841512,144.58,144.53,12.3484702]
[1764819988661,13.50841512,144.58,144.53,19.26741112]
[1764819988842,0.68,144.57,144.53,18.55741112]
[1764819989044,0.68,144.57,144.54,0.71]
[1764819991945,0.68,144.57,144.53,19.26741112]
[1764819991946,7.59710957,144.57,144.53,19.26741112]
[1764819992147,7.59710957,144.57,144.53,12.3484702]
[1764819992347,0.68,144.56,144.53,12.3484702]
[1764819993145,0.68,144.56,144.53,8.33]
[1764819993346,0.68,144.56,144.53,12.3484702]
[1764819994265,6.91710957,144.57,144.54,4.7284702]
[1764819994469,0.68,144.57,144.54,4.7284702]
[1764819995169,0.68,144.57,144.54,0.71]
[1764819995467,0.68,144.57,144.54,4.7284702]
[1764819996849,14.53627426,144.59,144.54,10.93693622]
[1764819997069,14.53627426,144.59,144.55,4.7284702]
[1764819997247,7.59579312,144.6,144.57,4.0184702]
[1764819997645,7.59579312,144.6,144.57,4.7284702]
[1764820000157,0.67,144.59,144.56,4.0184702]
[1764820000768,0.67,144.59,144.56,4.7384702]
[1764820001976,7.58579312,144.6,144.57,4.7384702]
[1764820002168,7.58579312,144.6,144.57,4.0184702]
[1764820002366,0.67,144.59,144.57,4.0184702]
[1764820002767,0.67,144.59,144.56,4.7384702]
[1764820003353,0.67,144.59,144.56,0.72]
[1764820003553,0.67,144.59,144.56,4.7384702]
[1764820004456,22.83480489,144.62,144.58,4.0184702]
[1764820004659,0.68,144.64,144.61,4.0184702]
[1764820005059,0.68,144.64,144.61,4.6884702]
[1764820005383,0.68,144.65,144.62,4.6884702]
[1764820006977,15.72318008,144.66,144.63,0.67]
[1764820007153,16.40318008,144.66,144.63,0.67]
[1764820007349,16.40318008,144.66,144.62,4.6884702]
[1764820007560,7.59330249,144.65,144.62,4.6884702]
[1764820007780,7.59330249,144.65,144.62,0.67]
[1764820007980,0.68,144.64,144.61,4.6884702]
[1764820008155,6.91330249,144.65,144.62,0.67]
[1764820008355,7.59330249,144.65,144.62,0.67]
[1764820011074,15.72284287,144.66,144.62,4.6884702]
[1764820011275,16.40284287,144.66,144.62,4.6884702]
[1764820011578,16.40284287,144.66,144.63,0.67]
[1764820011778,0.68,144.65,144.62,4.6884702]
[1764820012082,0.68,144.65,144.62,0.67]
[1764820012777,0.68,144.65,144.62,4.6884702]
[1764820013894,0.68,144.65,144.62,0.67]
[1764820014184,7.5932771,144.65,144.61,11.60353482]
[1764820014782,7.5932771,144.65,144.61,10.93353482]
[1764820014971,7.5932771,144.65,144.62,0.67]
[1764820015672,7.5932771,144.65,144.62,4.6884702]
[1764820015871,7.5932771,144.65,144.62,0.67]
[1764820017175,7.5932771,144.65,144.61,4.0184702]
[1764820017176,0.68,144.64,144.61,4.0184702]
[1764820017377,0.68,144.64,144.6,4.6884702]
[1764820018664,0.68,144.64,144.61,0.67]
[1764820019598,0.68,144.64,144.61,4.6884702]
[1764820020291,0.68,144.64,144.62,0.67]
[1764820020470,7.5932771,144.65,144.62,0.67]
[1764820020890,6.9132771,144.65,144.62,4.6884702]
[1764820021087,7.5932771,144.65,144.62,4.6884702]
[1764820021467,6.9132771,144.65,144.58,33.59927078]
[1764820021669,7.5932771,144.65,144.61,4.6884702]
[1764820022300,7.5932771,144.65,144.62,0.67]
[1764820028701,0.68,144.65,144.62,0.67]
[1764820028877,0.68,144.65,144.62,4.6884702]
[1764820029594,7.59327687,144.65,144.62,4.6884702]
[1764820032011,0.68,144.65,144.62,4.6884702]
[1764820033405,0.68,144.65,144.62,11.6030432]
[1764820033715,7.11553134,144.67,144.64,4.0184702]
[1764820033883,7.11553134,144.67,144.65,4.0184702]
[1764820034199,0.2,144.67,144.65,4.0184702]
[1764820034399,0.2,144.67,144.65,4.7384702]
[1764820035102,0.2,144.67,144.66,4.7384702]
[1764820038001,0.2,144.67,144.66,0.72]
[1764820039094,0.2,144.67,144.66,4.7384702]
[1764820039305,0.2,144.67,144.66,11.65123115]
[1764820041789,0.2,144.67,144.66,0.72]
[1764820042301,0.2,144.67,144.66,11.65123115]
[1764820042497,0.2,144.67,144.66,7.63276095]
[1764820042818,0.86,144.67,144.63,19.27228877]
[1764820043008,7.77228899,144.67,144.63,15.25381857]
[1764820043226,0.66,144.66,144.63,15.25381857]
[1764820043604,0.66,144.66,144.63,7.62]
[1764820043808,0.66,144.66,144.63,8.34]
[1764820048927,10.14260213,144.66,144.61,6.91500116]
[1764820049129,2.56982202,144.64,144.6,15.25549124]
[1764820049528,0.66,144.64,144.61,7.6351363]
[1764820050813,11.37976694,144.65,144.61,6.9151363]
[1764820051015,0.66,144.65,144.62,0.72]
[1764820051818,0.66,144.65,144.6,10.90982202]
[1764820051819,10.14308439,144.65,144.6,10.90982202]
[1764820052029,2.56982202,144.64,144.6,14.53549543]
[1764820052246,3.22982202,144.64,144.6,15.25549543]
[1764820052413,0.66,144.64,144.6,14.53549543]
[1764820052607,0.66,144.64,144.61,0.72]
[1764820053288,0.66,144.64,144.6,7.63549543]
[1764820053700,0.66,144.64,144.6,6.91549543]
[1764820053906,0.66,144.64,144.61,6.91511165]
[1764820054212,0.2,144.67,144.63,2.56982202]
[1764820054429,0.86,144.67,144.63,2.56982202]
[1764820054626,7.77233243,144.67,144.63,3.28982202]
[1764820055211,7.77233243,144.67,144.63,10.20375098]
[1764820055630,0.86,144.67,144.63,10.20375098]
[1764820055927,0.86,144.67,144.64,0.72]
[1764820056628,0.86,144.67,144.63,10.20375098]
[1764820057237,0.2,144.67,144.64,3.28982202]
[1764820057559,0.2,144.67,144.65,0.72]
[1764820060270,0.2,144.67,144.65,7.6331076]
[1764820060557,0.2,144.67,144.64,2.56982202]
[1764820060785,0.66,144.66,144.6,0.72]
[1764820061057,2.56982202,144.65,144.61,0.72]
[1764820061362,3.22982202,144.66,144.61,0.72]
[1764820061651,8.80994492,144.64,144.6,7.62]
[1764820062050,9.46994492,144.64,144.6,8.34]
[1764820062355,9.46994492,144.64,144.61,0.72]
[1764820062546,16.38387315,144.64,144.61,0.72]
[1764820074565,15.72387315,144.64,144.61,0.72]
[1764820074761,16.44387315,144.64,144.61,0.72]
[1764820081876,7.63315523,144.66,144.62,2.56982202]
[1764820082064,6.91315523,144.66,144.62,2.56982202]
[1764820082274,0.72,144.65,144.62,3.23982202]
[1764820082973,0.72,144.64,144.61,10.15482661]
[1764820083176,0.72,144.65,144.62,0.67]
[1764820086374,7.63330583,144.65,144.62,0.67]
[1764820086575,7.63330583,144.65,144.6,14.53550964]
[1764820086576,8.80994492,144.64,144.6,15.20550964]
[1764820086869,9.52994492,144.64,144.6,14.53550964]
[1764820087044,9.52994492,144.64,144.61,0.67]
[1764820087474,16.44380347,144.64,144.61,0.67]
[1764820092478,0.72,144.64,144.61,3.23982202]
[1764820092674,9.46994492,144.66,144.61,10.15494558]
[1764820092878,9.46994492,144.66,144.62,0.66]
[1764820093373,0.66,144.65,144.62,0.66]
[1764820095575,0.66,144.65,144.62,7.57464093]
[1764820097183,0.66,144.65,144.6,10.18982202]
[1764820097184,8.80994492,144.64,144.6,8.28]
[1764820097374,8.80994492,144.64,144.6,7.62]
[1764820097579,9.46994492,144.64,144.61,0.66]
[1764820098160,24.86240392,144.66,144.61,0.66]
[1764820098359,16.38284491,144.66,144.61,0.66]
[1764820098664,15.72284491,144.66,144.61,0.66]
[1764820098875,0.66,144.65,144.61,0.66]
[1764820099185,0.66,144.65,144.61,3.22982202]
[1764820099385,0.66,144.65,144.62,0.66]
[1764820099570,0.66,144.65,144.62,7.57462579]
[1764820104095,8.28,144.65,144.62,7.57462579]
[1764820104596,7.62,144.65,144.62,6.91462579]
[1764820104803,15.39244124,144.67,144.63,0.66]
[1764820105092,0.66,144.66,144.63,0.66]
[1764820105772,34.14075871,144.67,144.63,11.59004022]
[1764820105967,33.48075871,144.67,144.63,7.57416399]
[1764820106167,33.48075871,144.67,144.63,6.91416399]
[1764820106168,0.66,144.66,144.63,6.91416399]
[1764820106377,0.66,144.66,144.64,0.66]
[1764820106794,7.57416399,144.66,144.64,0.66]
[1764820107494,7.57416399,144.66,144.63,6.91416399]
[1764820107672,7.57416399,144.66,144.63,7.57416399]
[1764820108307,7.57416399,144.66,144.64,0.66]
[1764820109582,0.2,144.67,144.64,11.58936013]
[1764820109991,0.2,144.67,144.65,0.66]
[1764820110179,0.2,144.67,144.65,4.67587623]
[1764820110688,0.2,144.67,144.66,4.67587623]
[1764820111682,0.2,144.67,144.66,0.66]
[1764820112785,0.2,144.67,144.64,8.28]
[1764820112978,0.2,144.67,144.65,0.66]
[1764820113276,0.86,144.67,144.65,0.66]
[1764820113700,7.77237444,144.67,144.64,11.63587623]
[1764820113898,0.66,144.66,144.64,7.62]
[1764820114197,7.77237444,144.67,144.64,0.66]
[1764820114503,7.11237444,144.67,144.64,0.66]
[1764820114703,7.77237444,144.67,144.64,0.66]
[1764820115082,18.70229093,144.67,144.64,0.66]
[1764820115281,0.2,144.67,144.64,4.67587623]
[1764820115492,0.2,144.67,144.64,11.58949945]
[1764820115699,0.2,144.67,144.65,0.66]
[1764820116607,7.77238789,144.67,144.63,4.67587623]
[1764820116901,11.78826412,144.67,144.63,0.66]
[1764820117083,0.66,144.66,144.63,0.66]
[1764820117778,0.66,144.66,144.63,4.67587623]
[1764820118703,22.30710248,144.67,144.64,0.66]
[1764820118899,0.66,144.66,144.63,11.58996623]
[1764820119280,0.66,144.66,144.62,10.93040411]
[1764820119602,0.66,144.66,144.62,11.65040411]
[1764820119782,0.66,144.66,144.63,0.72]
[1764820120183,7.11238789,144.67,144.63,11.64994461]
[1764820120400,11.13040411,144.67,144.64,4.73587623]
[1764820120601,11.13040411,144.67,144.65,4.01587623]
[1764820120896,14.70650554,144.67,144.64,4.73587623]
[1764820121481,7.79406838,144.67,144.64,4.73587623]
[1764820121683,0.88,144.67,144.64,4.73587623]
[1764820122303,0.2,144.67,144.65,0.72]
[1764820122810,0.2,144.67,144.66,4.01587623]
[1764820122998,0.2,144.67,144.66,4.73587623]
[1764820124212,0.2,144.67,144.66,11.64863718]
[1764820126433,0.2,144.67,144.66,27.95750118]
[1764820132318,1e-08,144.67,144.66,27.95750118]
[1764820134399,0.2,144.69,144.68,16.308864]
[1764820134595,0.2,144.69,144.68,31.94061646]
[1764820134937,0.2,144.69,144.68,32.66061646]
[1764820135731,0.2,144.69,144.68,39.57242182]
[1764820138002,1e-08,144.71,144.69,8.80994492]
[1764820138202,1e-08,144.71,144.7,4.73587623]
[1764820139411,1e-08,144.71,144.7,11.64672626]
[1764820140216,1e-08,144.72,144.71,0.72]
[1764820140418,0.2,144.75,144.74,16.308864]
[1764820140618,0.2,144.75,144.74,32.66061646]
[1764820140810,1e-08,144.75,144.74,32.66061646]
[1764820141252,0.2,144.77,144.74,24.628864]
[1764820141431,0.2,144.77,144.76,10.92386186]
[1764820141737,0.2,144.77,144.76,14.93973809]
[1764820141919,0.2,144.77,144.76,15.65973809]
[1764820145027,0.2,144.77,144.76,11.64386186]
[1764820145625,0.2,144.8,144.76,32.92970216]
[1764820145917,0.2,144.8,144.79,4.01587623]
[1764820146621,0.2,144.8,144.79,4.73587623]
[1764820146927,0.2,144.8,144.79,4.01587623]
[1764820147126,0.2,144.8,144.79,4.73587623]
[1764820147327,0.2,144.8,144.79,11.64243055]
[1764820148719,0.9,144.8,144.79,10.92243055]
[1764820150744,0.9,144.8,144.79,6.90655432]
[1764820150920,0.9,144.8,144.78,4.01587623]
[1764820151122,0.7,144.79,144.78,4.01587623]
[1764820151636,0.7,144.79,144.78,10.92281396]
[1764820152847,0.91,144.8,144.78,10.92281396]
[1764820153054,0.2,144.8,144.79,4.01587623]
[1764820155248,0.2,144.8,144.79,10.92243055]
[1764820157633,0.2,144.8,144.79,18.52243055]
[1764820158925,0.2,144.8,144.79,19.20243055]
[1764820160248,0.2,144.8,144.79,15.18655432]
[1764820160555,0.2,144.8,144.79,19.20243055]
[1764820162332,0.2,144.81,144.79,19.20243055]
[1764820162534,0.2,144.81,144.8,4.69587623]
[1764820163756,0.2,144.81,144.8,11.60195357]
[1764820164444,0.2,144.81,144.8,7.58607734]
[1764820164630,0.2,144.81,144.8,11.60195357]
[1764820166354,0.2,144.81,144.8,10.14825076]
[1764820168237,0.2,144.86,144.8,60.9875015]
[1764820168562,0.2,144.86,144.85,2.56217342]
[1764820168745,0.2,144.86,144.85,10.16217342]
[1764820169442,0.2,144.86,144.85,17.06586689]
[1764820169833,0.2,144.86,144.85,17.74586689]
[1764820170038,0.2,144.86,144.85,15.18369347]
[1764820170238,0.2,144.86,144.85,17.74586689]
[1764820170839,0.2,144.86,144.85,15.18369347]
[1764820171052,0.2,144.86,144.85,17.74586689]
[1764820176261,0.1,144.89,144.86,0.68]
[1764820176570,0.1,144.89,144.88,2.56217342]
[1764820176774,0.1,144.89,144.87,7.6]